bitfinex/quotes_SOLUSD_20250125
["timestamp","ask_amount","ask_price","bid_price","bid_amount"]
[1737799215690,2.74,247.65,247.48,23.776884]
[1737799215886,2.74,247.65,247.5,23.776884]
[1737799216820,2.74,247.65,247.5,243.276884]
[1737799217297,2.74,247.65,247.52,23.776884]
[1737799218307,2.74,247.65,247.51,27.817084]
[1737799219017,3.74,247.65,247.51,219.5]
[1737799219313,22.0,247.61,247.51,219.5]
[1737799219497,2.0,247.59,247.51,219.5]
[1737799219701,1.0,247.61,247.51,81.9]
[1737799219902,2.0,247.63,247.51,81.9]
[1737799220222,2.74,247.65,247.51,223.54]
[1737799220919,2.74,247.65,247.52,23.776884]
[1737799221119,21.0,247.7,247.52,243.276884]
[1737799221120,2.76,247.7,247.52,243.276884]
[1737799221300,2.76,247.7,247.53,1.5404]
[1737799221913,22.76,247.7,247.53,1.5404]
[1737799222321,2.76,247.7,247.55,23.776884]
[1737799222825,2.76,247.7,247.57,23.776884]
[1737799222996,2.76,247.7,247.57,243.276884]
[1737799223323,2.76,247.7,247.58,1.5404]
[1737799223857,1.0,247.79,247.58,1.5404]
[1737799224009,20.0,247.77,247.58,221.0404]
[1737799224211,2.76,247.76,247.58,221.0404]
[1737799224518,2.76,247.76,247.6,23.776884]
[1737799225093,2.76,247.76,247.6,243.276884]
[1737799225513,3.76,247.76,247.6,243.276884]
[1737799226505,3.76,247.76,247.6,247.315584]
[1737799228120,2.76,247.76,247.6,247.315584]
[1737799229517,2.0,247.74,247.6,219.5]
[1737799230225,2.76,247.76,247.61,23.776884]
[1737799230401,0.063,247.79,247.63,23.776884]
[1737799230600,0.063,247.79,247.65,23.776884]
[1737799230795,20.0,247.78,247.65,23.776884]
[1737799231013,20.0,247.78,247.65,243.276884]
[1737799231424,0.063,247.79,247.66,4.0377]
[1737799231605,0.063,247.79,247.67,1.5888]
[1737799231804,0.063,247.79,247.68,23.776884]
[1737799232011,0.063,247.79,247.68,243.276884]
[1737799233107,0.063,247.79,247.69,8.0072]
[1737799233307,0.063,247.79,247.7,23.776884]
[1737799233513,0.063,247.79,247.72,1.5888]
[1737799234522,0.063,247.79,247.74,23.776884]
[1737799234726,0.063,247.79,247.74,243.276884]
[1737799236836,0.063,247.79,247.76,23.776884]
[1737799238945,0.063,247.79,247.76,243.276884]
[1737799239325,0.063,247.79,247.76,247.312984]
[1737799242334,0.063,247.79,247.78,51.869884]
[1737799242635,0.063,247.9,247.79,23.776884]
[1737799242942,0.063,247.9,247.79,243.276884]
[1737799243235,0.063,247.9,247.83,23.776884]
[1737799243820,0.063,247.9,247.85,23.776884]
[1737799244021,0.063,247.9,247.85,243.276884]
[1737799246241,0.063,247.9,247.85,247.311484]
[1737799248035,0.063,247.9,247.87,23.776884]
[1737799248431,0.063,247.9,247.86,1.5636]
[1737799250525,0.063,247.9,247.86,5.598]
[1737799251347,0.063,247.9,247.87,23.776884]
[1737799251546,0.063,247.9,247.88,4.0342]
[1737799253947,0.063,247.9,247.88,223.5342]
[1737799255642,0.063,247.9,247.88,219.5]
[1737799259354,0.063,247.9,247.88,223.5342]
[1737799260224,0.063,247.9,247.89,28.2141457]
[1737799260530,0.0001,247.9,247.89,247.7141457]
[1737799260729,0.063,247.94,247.93,23.776884]
[1737799260933,0.063,247.94,247.93,243.68002417]
[1737799261131,0.063,247.94,247.93,243.276884]
[1737799261940,0.063,247.94,247.93,247.310184]
[1737799262144,0.063,247.94,247.93,248.906184]
[1737799262342,0.063,247.99,247.97,23.776884]
[1737799262549,0.063,247.99,247.98,0.40305619]
[1737799262747,0.063,247.99,247.97,249.459384]
[1737799263168,0.063,247.99,247.97,225.6825]
[1737799264871,0.063,247.99,247.97,219.5]
[1737799265951,0.063,247.99,247.93,137.6]
[1737799266152,20.063,247.99,247.9,219.5]
[1737799268371,20.063,247.99,247.84,4.0347]
[1737799268372,1.0,247.97,247.87,137.6]
[1737799268668,20.0,247.93,247.81,139.1124]
[1737799268959,20.0,247.93,247.81,143.1476]
[1737799269174,6.655,247.96,247.82,23.776884]
[1737799269355,6.655,247.96,247.82,24.18022126]
[1737799269543,20.063,247.99,247.82,24.18022126]
[1737799269864,20.063,247.99,247.84,23.776884]
[1737799270067,20.063,247.99,247.85,0.40328068]
[1737799270261,0.063,247.99,247.86,23.776884]
[1737799270461,0.063,247.99,247.87,0.40320304]
[1737799270647,0.063,247.99,247.88,23.776884]
[1737799270847,0.063,247.99,247.89,0.40319776]
[1737799271042,0.063,247.99,247.91,23.776884]
[1737799271442,0.063,247.99,247.91,223.5335]
[1737799272338,0.063,247.99,247.92,23.776884]
[1737799272544,0.063,247.99,247.92,243.68008279]
[1737799272847,0.063,247.99,247.92,243.276884]
[1737799275078,0.063,247.99,247.92,247.310384]
[1737799275471,0.063,247.99,247.92,219.5]
[1737799278647,0.063,247.99,247.92,219.53]
[1737799279257,0.063,247.99,247.92,223.5634]
[1737799282580,0.063,247.99,247.93,28.2133954]
[1737799282886,0.063,247.99,247.93,247.7133954]
[1737799283183,0.063,247.99,247.93,247.310184]
[1737799283682,0.063,247.99,247.95,4.033]
[1737799284557,0.063,247.99,247.98,23.776884]
[1737799284763,0.063,247.99,247.98,243.276884]
[1737799285670,0.063,247.99,247.98,247.309384]
[1737799287156,0.063,247.99,247.94,137.6]
[1737799287656,0.063,247.99,247.92,137.63]
[1737799291280,1.0,247.96,247.92,0.03]
[1737799292059,20.0,247.94,247.92,0.03]
[1737799294276,1.0,247.93,247.92,0.03]
[1737799294582,31.782584,247.93,247.92,0.01590001]
[1737799294764,21.0,247.9,247.79,137.63]
[1737799294961,2.78,247.89,247.79,137.63]
[1737799296087,2.78,247.89,247.79,141.6655]
[1737799296668,2.78,247.89,247.79,137.63]
[1737799299890,20.0,247.9,247.79,137.63]
[1737799301289,20.0,247.9,247.79,223.5655]
[1737799304384,0.9027,247.92,247.79,223.5655]
[1737799305669,20.0,247.9,247.79,223.5655]
[1737799307472,20.0,247.9,247.79,219.53]
[1737799307672,22.0,247.9,247.79,219.53]
[1737799308072,22.0,247.9,247.79,81.93]
[1737799308473,21.0,247.9,247.79,81.93]
[1737799309488,20.0,247.89,247.79,81.93]
[1737799311588,21.0,247.89,247.79,81.93]
[1737799312503,20.0,247.89,247.79,81.93]
[1737799313271,0.9027,247.92,247.79,81.93]
[1737799313471,20.0,247.9,247.79,81.93]
[1737799319098,20.0,247.9,247.79,219.53]
[1737799322104,22.76,247.9,247.79,219.53]
[1737799323202,20.0,247.82,247.79,0.03]
[1737799323401,20.0,247.8,247.79,0.03]
[1737799326409,20.0,247.76,247.68,0.03]
[1737799326702,2.76,247.75,247.68,0.03]
[1737799328000,2.76,247.75,247.68,137.63]
[1737799328383,2.78,247.78,247.68,137.63]
[1737799330686,20.0,247.8,247.68,137.63]
[1737799330891,2.78,247.81,247.69,23.776884]
[1737799331087,2.78,247.81,247.7,4.0371]
[1737799331304,2.78,247.81,247.71,1.5463]
[1737799332684,2.78,247.81,247.69,219.5]
[1737799332889,1.0,247.79,247.69,81.9]
[1737799333085,21.0,247.74,247.68,0.03]
[1737799334009,20.0,247.74,247.68,0.03]
[1737799335612,20.0,247.73,247.68,0.03]
[1737799336807,23.776884,247.72,247.68,0.03]
[1737799337014,20.0,247.69,247.68,0.03]
[1737799338590,43.776884,247.69,247.68,0.03]
[1737799340505,44.776884,247.69,247.68,0.03]
[1737799341812,46.39624807,247.69,247.68,0.03]
[1737799342398,52.64114807,247.69,247.68,0.03]
[1737799343944,56.2856392,247.69,247.68,0.03]
[1737799344109,57.02399353,247.69,247.68,0.03]
[1737799345918,33.24710953,247.69,247.68,0.03]
[1737799346103,15.02710953,247.69,247.68,0.03]
[1737799346296,11.64426407,247.69,247.68,0.03]
[1737799347725,10.64426407,247.69,247.68,0.03]
[1737799348021,11.64426407,247.69,247.68,0.03]
[1737799348820,35.42114807,247.69,247.68,0.03]
[1737799354439,39.0656392,247.69,247.68,0.03]
[1737799356534,28.17624807,247.69,247.68,0.03]
[1737799357221,4.39936407,247.69,247.68,0.03]
[1737799357617,48.17624807,247.69,247.68,0.03]
[1737799358142,45.39624807,247.69,247.68,0.03]
[1737799358307,49.17624807,247.69,247.68,0.03]
[1737799358961,50.17624807,247.69,247.68,0.03]
[1737799359615,49.17624807,247.69,247.68,0.03]
[1737799359808,50.17624807,247.69,247.68,0.03]
[1737799365044,1.0,247.57,247.5,0.03]
[1737799365336,1.0,247.57,247.44,1.5019]
[1737799365337,23.776884,247.53,247.44,1.5019]
[1737799365640,20.0,247.5,247.44,1.5019]
[1737799365944,7.02277446,247.56,247.44,1.5019]
[1737799366151,23.776884,247.55,247.44,1.5019]
[1737799366314,20.0,247.52,247.44,1.5019]
[1737799369644,20.0,247.52,247.38,1.5076]
[1737799369944,20.0,247.52,247.38,139.1076]
[1737799369945,17.8680442,247.52,247.38,139.1076]
[1737799370144,25.40848205,247.55,247.38,139.1076]
[1737799370362,2.8,247.54,247.39,23.776884]
[1737799370551,2.82,247.54,247.39,23.776884]
[1737799370734,2.82,247.54,247.39,243.276884]
[1737799370931,2.82,247.54,247.41,23.776884]
[1737799371139,2.82,247.54,247.42,1.5076]
[1737799374763,20.0,247.51,247.42,1.5076]
[1737799376450,20.0,247.47,247.42,1.5076]
[1737799377161,2.82,247.54,247.42,1.5076]
[1737799377162,43.776884,247.53,247.42,1.5076]
[1737799377562,44.776884,247.53,247.42,1.5076]
[1737799378064,43.776884,247.53,247.42,1.5076]
[1737799380066,2.8,247.52,247.42,1.5076]
[1737799380452,20.0,247.49,247.42,1.5076]
[1737799380974,2.8,247.52,247.42,1.5076]
[1737799381574,2.8,247.52,247.42,221.0076]
[1737799384471,20.0,247.46,247.42,221.0076]
[1737799384771,20.0,247.46,247.42,1.5076]
[1737799385149,43.776884,247.51,247.42,1.5076]
[1737799385358,2.0,247.5,247.42,1.5076]
[1737799385554,20.0,247.44,247.42,1.5076]
[1737799386157,23.776884,247.49,247.42,1.5076]
[1737799386357,24.776884,247.49,247.42,1.5076]
[1737799386553,20.0,247.46,247.42,1.5076]
[1737799386780,20.0,247.46,247.35,1.5792]
[1737799388372,20.0,247.42,247.35,1.5792]
[1737799389269,20.0,247.44,247.35,1.5792]
[1737799390675,20.0,247.4,247.35,1.5792]
[1737799390851,2.82,247.39,247.35,1.5792]
[1737799396079,2.82,247.39,247.28,1.6275]
[1737799396266,2.82,247.39,247.28,221.1275]
[1737799397877,2.82,247.39,247.29,23.776884]
[1737799399366,2.82,247.39,247.29,243.276884]
[1737799399574,2.82,247.39,247.29,247.320684]
[1737799399782,1.0,247.51,247.29,247.320684]
[1737799399783,0.063,247.52,247.33,23.776884]
[1737799399981,2.8,247.49,247.35,23.776884]
[1737799400164,2.8,247.49,247.36,1.6275]
[1737799400372,2.8,247.49,247.38,23.776884]
[1737799400574,2.8,247.49,247.36,139.2275]
[1737799400776,20.0,247.48,247.36,1.6275]
[1737799404893,20.0,247.44,247.36,1.6275]
[1737799410279,20.0,247.44,247.28,139.1881]
[1737799413208,20.0,247.4,247.28,139.1881]
[1737799417515,20.0,247.4,247.28,1.5881]
[1737799417809,20.0,247.36,247.28,0.03]
[1737799418021,20.0,247.32,247.28,0.03]
[1737799418610,2.8,247.35,247.28,0.03]
[1737799423590,20.0,247.32,247.28,0.03]
[1737799426802,2.8,247.35,247.28,0.03]
[1737799427185,26.576884,247.35,247.28,0.03]
[1737799427386,20.0,247.32,247.28,0.03]
[1737799428617,20.0,247.29,247.28,0.03]
[1737799429303,23.776884,247.29,247.28,0.03]
[1737799429897,20.0,247.29,247.28,0.03]
[1737799430097,50.250484,247.29,247.28,0.03]
[1737799430593,43.776884,247.29,247.28,0.03]
[1737799432519,45.36843137,247.29,247.28,0.03]
[1737799433493,20.0,247.34,247.28,0.03]
[1737799433919,20.0,247.3,247.28,0.03]
[1737799434418,2.8,247.35,247.28,0.03]
[1737799434723,4.44145933,247.35,247.28,0.03]
[1737799435304,20.0,247.3,247.28,0.03]
[1737799436620,1.64145933,247.35,247.28,0.03]
[1737799436799,2.78,247.29,247.28,0.03]
[1737799439426,2.78,247.29,247.22,1.6517]
[1737799439729,20.0,247.36,247.22,1.6517]
[1737799439927,20.0,247.32,247.22,143.2966]
[1737799440229,20.0,247.32,247.28,0.03]
[1737799440403,30.0,247.29,247.28,0.03]
[1737799441313,20.0,247.32,247.28,0.03]
[1737799441710,18.980927,247.35,247.17,81.93]
[1737799441711,8.03,247.31,247.17,0.03]
[1737799441918,8.03,247.31,247.13,29.0]
[1737799441919,20.0,247.21,247.13,29.0]
[1737799442119,2.88,247.2,247.13,29.0]
[1737799442334,22.88,247.2,247.13,29.0]
[1737799443016,20.0,247.16,247.13,29.0]
[1737799443211,20.0,247.16,247.13,22.39228346]
[1737799443716,30.0,247.19,247.13,18.54995453]
[1737799443928,20.0,247.16,247.13,18.54995453]
[1737799444307,30.0,247.14,247.13,18.54995453]
[1737799445641,20.0,247.16,247.13,18.54995453]
[1737799445826,20.0,247.19,247.13,18.54995453]
[1737799446420,20.0,247.15,247.13,18.54995453]
[1737799448925,20.0,247.19,247.13,18.54995453]
[1737799449113,2.9,247.18,247.13,18.54995453]
[1737799449734,20.0,247.16,247.13,18.54995453]
[1737799450637,2.9,247.18,247.13,18.54995453]
[1737799451028,2.92,247.19,247.13,18.54995453]
[1737799451918,2.92,247.19,247.14,1.5539]
[1737799453736,2.92,247.19,247.13,18.54995453]
[1737799454239,20.0,247.15,247.13,18.57995453]
[1737799454827,23.776884,247.18,247.13,18.57995453]
[1737799454828,16.194267,247.14,247.13,18.57995453]
[1737799455422,2.92,247.19,247.13,18.57995453]
[1737799455743,23.776884,247.18,247.13,18.57995453]
[1737799456120,20.0,247.15,247.13,18.57995453]
[1737799456821,2.92,247.19,247.13,18.57995453]
[1737799457641,20.0,247.15,247.13,18.57995453]
[1737799457844,16.192002,247.18,247.13,18.57995453]
[1737799458051,2.92,247.19,247.13,18.57995453]
[1737799459922,20.0,247.17,247.13,18.57995453]
[1737799460137,16.190952,247.2,247.14,23.776884]
[1737799460323,2.9,247.2,247.14,23.776884]
[1737799460519,2.9,247.2,247.14,30.347384]
[1737799461047,2.9,247.2,247.14,6.5705]
[1737799461347,2.9,247.2,247.14,30.347384]
[1737799461527,2.9,247.2,247.15,23.776884]
[1737799462044,2.9,247.2,247.14,30.347384]
[1737799462231,2.9,247.2,247.15,23.776884]
[1737799462431,2.9,247.2,247.14,23.776884]
[1737799463228,22.9,247.2,247.14,23.776884]
[1737799464260,22.9,247.2,247.13,18.57995453]
[1737799465639,22.9,247.2,247.14,23.776884]
[1737799465845,2.9,247.2,247.14,23.776884]
[1737799466355,8.03,247.31,247.14,23.776884]
[1737799466539,2.9,247.28,247.14,23.776884]
[1737799466737,6.364,247.31,247.14,165.423084]
[1737799466939,0.063,247.32,247.15,1.5788]
[1737799466940,2.9,247.27,247.15,1.5788]
[1737799467542,20.0,247.26,247.15,1.5788]
[1737799467751,2.9,247.27,247.15,1.5788]
[1737799468457,2.9,247.27,247.15,5.6248]
[1737799468849,20.0,247.26,247.13,18.57995453]
[1737799469051,20.0,247.24,247.13,18.57995453]
[1737799469257,20.0,247.24,247.14,23.776884]
[1737799471745,20.0,247.22,247.13,18.57995453]
[1737799473948,24.22277446,247.22,247.13,18.57995453]
[1737799474459,29.23489515,247.22,247.13,18.57995453]
[1737799476057,20.0,247.18,247.13,18.57995453]
[1737799476257,25.01212069,247.18,247.13,18.57995453]
[1737799477155,25.01212069,247.18,247.13,9.66252005]
[1737799478576,4.9619944,247.21,247.13,9.66252005]
[1737799478577,20.0,247.19,247.13,9.66252005]
[1737799479076,2.9,247.18,247.13,9.66252005]
[1737799480470,22.9,247.18,247.13,9.66252005]
[1737799481054,2.9,247.18,247.13,9.66252005]
[1737799482753,22.9,247.18,247.13,9.66252005]
[1737799483382,2.9,247.18,247.13,9.66252005]
[1737799484994,22.9,247.18,247.13,9.66252005]
[1737799487588,6.63903639,247.18,247.13,9.66252005]
[1737799488385,20.0,247.14,247.13,9.66252005]
[1737799490074,22.92,247.14,247.13,9.66252005]
[1737799492865,9.66252,247.17,247.13,9.66252005]
[1737799493068,4.28577446,247.27,247.14,23.776884]
[1737799493264,2.92,247.23,247.14,23.776884]
[1737799494190,20.0,247.22,247.14,23.776884]
[1737799494887,2.92,247.21,247.13,11.26662005]
[1737799498288,2.92,247.21,247.13,9.66252005]
[1737799500695,2.92,247.21,247.13,9.61412005]
[1737799500898,22.92,247.21,247.13,9.60192005]
[1737799502074,5.01225615,247.22,247.13,9.60192005]
[1737799502292,2.9,247.2,247.13,9.60192005]
[1737799502685,20.0,247.19,247.13,9.60192005]
[1737799503605,2.9,247.2,247.13,9.60192005]
[1737799504277,2.9,247.19,247.13,9.60192005]
[1737799506000,4.54941094,247.19,247.13,9.60192005]
[1737799510104,2.9,247.19,247.13,9.60192005]
[1737799511983,20.0,247.18,247.13,9.60192005]
[1737799513987,20.0,247.18,247.13,5.17227167]
[1737799513988,20.0,247.17,247.13,5.17227167]
[1737799514208,20.0,247.16,247.13,3.10378708]
[1737799515387,20.0,247.17,247.13,3.10378708]
[1737799515799,2.9,247.16,247.13,3.10378708]
[1737799515998,4.22277446,247.19,247.13,3.10378708]
[1737799516205,2.9,247.18,247.13,3.10378708]
[1737799518021,20.0,247.17,247.13,3.10378708]
[1737799520116,2.88,247.16,247.13,3.10378708]
[1737799520714,5.07525615,247.24,247.14,23.776884]
[1737799521097,2.9,247.23,247.14,23.776884]
[1737799521298,7.91225615,247.23,247.14,23.776884]
[1737799521807,20.0,247.2,247.13,3.10378708]
[1737799523600,0.063,247.18,247.13,3.10378708]
[1737799527408,20.0,247.15,247.13,3.10378708]
[1737799529537,21.6270573,247.15,247.04,1.6213]
[1737799531541,20.0,247.11,247.04,1.6213]
[1737799537249,20.0,247.11,246.98,1.6543]
[1737799537754,20.0,247.11,246.99,23.776884]
[1737799538618,2.88,247.1,246.99,23.776884]
[1737799539121,5.01225615,247.14,246.99,23.776884]
[1737799539323,2.88,247.13,247.01,23.776884]
[1737799542045,2.88,247.13,247.0,8.0028]
[1737799542218,1.6270573,247.15,247.01,23.776884]
[1737799542219,2.86,247.12,247.01,23.776884]
[1737799542936,1.6270573,247.15,247.01,23.776884]
[1737799543147,2.86,247.14,247.01,23.776884]
[1737799543334,2.86,247.14,247.01,27.825184]
[1737799545627,2.86,247.14,247.01,23.776884]
[1737799546327,4.46031139,247.14,247.01,23.776884]
[1737799549232,2.86,247.14,247.01,23.776884]
[1737799549431,20.0,247.17,247.01,27.825084]
[1737799549649,2.86,247.16,247.01,165.425084]
[1737799550764,1.61439335,247.17,247.01,165.425084]
[1737799550965,0.063,247.18,247.03,28.824884]
[1737799551135,2.84,247.17,247.05,25.431184]
[1737799551329,2.84,247.17,247.05,26.431184]
[1737799552031,0.063,247.18,247.14,1.6543]
[1737799552244,0.063,247.18,247.14,139.2543]
[1737799553055,0.063,247.18,247.14,1.6543]
[1737799553546,0.063,247.16,247.14,1.6543]
[1737799553879,0.063,247.16,247.08,8.0028]
[1737799554044,0.063,247.16,247.08,1.6543]
[1737799554536,2.9,247.15,247.08,1.6543]
[1737799555267,2.9,247.15,247.09,23.776884]
[1737799559745,2.9,247.15,247.09,161.376884]
[1737799560577,0.063,247.16,247.09,161.376884]
[1737799561374,0.063,247.16,247.12,29.993584]
[1737799562250,0.063,247.16,247.15,24.776884]
[1737799562580,0.063,247.16,247.15,165.28948832]
[1737799562749,0.063,247.16,247.15,163.885084]
[1737799562949,0.063,247.16,247.15,162.885084]
[1737799564682,0.063,247.16,247.15,164.885084]
[1737799565047,0.063,247.18,247.17,1.0]
[1737799565246,0.063,247.18,247.16,24.776884]
[1737799565489,0.063,247.18,247.16,23.776884]
[1737799568066,0.063,247.18,247.17,24.776884]
[1737799568796,0.063,247.18,247.17,244.276884]
[1737799571110,0.063,247.24,247.22,1.0]
[1737799571400,0.063,247.24,247.23,31.740184]
[1737799571980,0.063,247.24,247.18,137.6]
[1737799572982,0.063,247.24,247.19,23.776884]
[1737799573309,0.063,247.24,247.18,137.6]
[1737799574108,2.963,247.24,247.12,137.6]
[1737799574690,2.963,247.24,247.1,221.0065]
[1737799574892,2.963,247.24,247.1,139.1065]
[1737799575199,2.963,247.24,247.11,23.776884]
[1737799576307,2.963,247.24,247.11,161.376884]
[1737799577310,2.963,247.24,247.12,0.40451072]
[1737799578108,2.963,247.24,247.13,23.776884]
[1737799579222,2.963,247.24,247.13,24.18136917]
[1737799580615,2.963,247.24,247.13,28.22776917]
[1737799580922,2.963,247.24,247.12,137.6]
[1737799581291,2.963,247.24,247.13,24.18135784]
[1737799581790,2.963,247.24,247.15,23.776884]
[1737799583018,2.963,247.24,247.15,27.822984]
[1737799583631,2.963,247.24,247.15,247.322984]
[1737799584088,0.063,247.24,247.15,247.322984]
[1737799584296,0.063,247.24,247.15,223.5461]
[1737799584716,0.063,247.24,247.16,23.776884]
[1737799584897,0.063,247.24,247.16,24.18127262]
[1737799585222,0.063,247.24,247.16,28.22717262]
[1737799585722,0.063,247.24,247.16,27.822784]
[1737799586014,0.063,247.24,247.16,23.776884]
[1737799586216,0.063,247.24,247.15,219.5]
[1737799586614,0.063,247.24,247.16,23.776884]
[1737799586816,0.063,247.24,247.15,137.6]
[1737799587121,0.063,247.24,247.11,137.63]
[1737799588908,0.063,247.24,247.12,23.776884]
[1737799592324,20.0,247.21,247.12,23.776884]
[1737799592624,20.0,247.21,247.12,161.376884]
[1737799593209,20.0,247.21,247.13,0.40452342]
[1737799593411,19.55334034,247.21,247.13,0.40452342]
[1737799595634,19.55334034,247.21,247.12,161.376884]
[1737799598028,21.21344034,247.21,247.12,161.376884]
[1737799598331,21.21344034,247.21,247.11,0.03]
[1737799603613,20.0,247.17,247.11,0.03]
[1737799604732,20.0,247.13,247.11,0.03]
[1737799604913,2.86,247.12,247.11,0.03]
[1737799610431,20.0,247.08,247.01,0.03]
[1737799612935,20.0,247.03,247.01,0.03]
[1737799616123,24.759684,247.02,246.86,0.03]
[1737799616326,6.0388,246.98,246.86,0.03]
[1737799616538,2.86,246.97,246.86,0.03]
[1737799617051,20.0,246.95,246.86,0.03]
[1737799620629,2.88,246.95,246.86,0.03]
[1737799622638,2.88,246.95,246.87,1.5332]
[1737799623328,2.88,246.95,246.88,23.776884]
[1737799623656,22.88,246.98,246.88,27.827384]
[1737799623840,2.88,246.98,246.87,1.39454945]
[1737799624157,2.88,246.98,246.88,23.776884]
[1737799624339,3.59353338,247.06,246.89,0.40494537]
[1737799624537,2.88,247.03,246.89,137.6]
[1737799624757,20.0,247.01,246.89,137.6]
[1737799624957,20.0,246.99,246.86,0.03]
[1737799625138,20.0,246.95,246.86,0.03]
[1737799625850,20.0,246.97,246.86,0.03]
[1737799626576,1.6331388,246.98,246.86,0.03]
[1737799626864,20.0,246.98,246.86,0.03]
[1737799627169,6.0388,246.97,246.86,0.03]
[1737799627739,20.0,246.94,246.86,0.03]
[1737799630981,0.73921994,246.99,246.86,0.03]
[1737799631151,3.25903539,247.0,246.86,0.03]
[1737799631352,2.9,246.99,246.86,0.03]
[1737799631961,22.9,246.99,246.86,0.03]
[1737799637371,2.9,246.99,246.86,0.03]
[1737799638476,2.88,247.0,246.88,23.776884]
[1737799638777,2.9,246.99,246.87,1.5923]
[1737799639182,2.9,246.99,246.88,23.776884]
[1737799639576,2.79317347,246.99,246.88,23.776884]
[1737799640171,2.79317347,246.99,246.88,27.827284]
[1737799640374,2.79317347,246.99,246.88,4.0504]
[1737799640753,2.79317347,246.99,246.89,23.776884]
[1737799641169,21.40664369,247.05,246.89,23.776884]
[1737799641379,2.9,247.04,246.88,4.0504]
[1737799641563,20.0,247.02,246.89,29.815584]
[1737799642082,20.0,247.01,246.89,29.815584]
[1737799642283,20.0,247.01,246.91,23.776884]
[1737799642487,2.9,247.03,246.91,23.776884]
[1737799642657,2.9,247.03,246.89,10.089]
[1737799642856,20.0,247.02,246.89,10.089]
[1737799643063,20.0,247.0,246.89,10.089]
[1737799643271,20.0,247.0,246.9,23.776884]
[1737799643676,2.9,247.03,246.91,4.05]
[1737799643677,20.0,247.02,246.91,4.05]
[1737799645387,20.0,247.02,246.92,1.5923]
[1737799645581,0.063,246.99,246.93,23.776884]
[1737799645881,0.063,246.99,246.92,1.5923]
[1737799646289,0.063,246.99,246.93,23.776884]
[1737799646793,0.063,246.99,246.93,161.376884]
[1737799648292,0.063,246.99,246.93,23.776884]
[1737799650673,0.063,246.99,246.93,165.426484]
[1737799651095,0.063,246.99,246.95,23.776884]
[1737799651395,0.063,246.99,246.98,1.0]
[1737799651577,12.40218721,247.38,247.02,7.7244]
[1737799651578,3.59353338,247.23,247.02,7.7244]
[1737799651785,2.96,247.21,247.02,7.7244]
[1737799652102,1.0,247.19,247.02,1.614]
[1737799652406,20.0,247.17,247.02,1.614]
[1737799652573,20.0,247.1,247.02,1.614]
[1737799652769,16.197701,247.13,247.02,139.214]
[1737799652974,2.98,247.14,247.02,139.214]
[1737799653172,2.98,247.14,247.03,23.776884]